[Event "*** Titled Tuesday Blitz"]
[Site "Chess.com"]
[Date "2020.05.26"]
[Round "8"]
[White "FrogMist"]
[Black "dosto07"]
[Result "1-0"]
[WhiteElo "2358"]
[BlackElo "2141"]
[TimeControl "180+1"]
[EndTime "11:41:42 PDT"]
[Termination "FrogMist won on time"]

1. e4 {[%clk 0:03:00.9]} 1... e5 {[%clk 0:02:58.7]} 2. Nf3 {[%clk 0:03:00.6]}
2... Nc6 {[%clk 0:02:58.3]} 3. Bb5 {[%clk 0:03:01]} 3... a6 {[%clk 0:02:58.3]}
4. Ba4 {[%clk 0:03:01.5]} 4... Nf6 {[%clk 0:02:58.3]} 5. O-O {[%clk 0:03:02]}
5... Be7 {[%clk 0:02:58]} 6. Re1 {[%clk 0:03:02.5]} 6... b5 {[%clk 0:02:57.8]}
7. Bb3 {[%clk 0:03:03.1]} 7... d6 {[%clk 0:02:57.5]} 8. c3 {[%clk 0:03:03.4]}
8... O-O {[%clk 0:02:54.3]} 9. h3 {[%clk 0:03:03.6]} 9... Nb8 {[%clk 0:02:53.1]}
10. d4 {[%clk 0:03:03.1]} 10... Nbd7 {[%clk 0:02:52.6]} 11. Nbd2 {[%clk
0:03:02.3]} 11... Bb7 {[%clk 0:02:51]} 12. Bc2 {[%clk 0:03:00.4]} 12... Re8
{[%clk 0:02:49]} 13. Nf1 {[%clk 0:03:00.4]} 13... Bf8 {[%clk 0:02:48.6]} 14. Ng3
{[%clk 0:02:58.4]} 14... g6 {[%clk 0:02:46.3]} 15. a4 {[%clk 0:02:56.6]} 15...
c5 {[%clk 0:02:44.7]} 16. d5 {[%clk 0:02:43.4]} 16... c4 {[%clk 0:02:44]} 17.
Be3 {[%clk 0:02:26.6]} 17... Qc7 {[%clk 0:02:40.2]} 18. Qd2 {[%clk 0:02:19.7]}
18... Nc5 {[%clk 0:02:35.4]} 19. Nh2 {[%clk 0:02:03.1]} 19... Bg7 {[%clk
0:02:24.9]} 20. Bh6 {[%clk 0:01:54.4]} 20... Qe7 {[%clk 0:02:12.6]} 21. Bxg7
{[%clk 0:01:47.7]} 21... Kxg7 {[%clk 0:02:10.3]} 22. Qg5 {[%clk 0:01:46]} 22...
Kh8 {[%clk 0:02:04.4]} 23. axb5 {[%clk 0:01:40.8]} 23... axb5 {[%clk 0:02:02.3]}
24. Rxa8 {[%clk 0:01:41.7]} 24... Rxa8 {[%clk 0:01:58.6]} 25. f4 {[%clk
0:01:13.1]} 25... exf4 {[%clk 0:01:47.7]} 26. Qxf4 {[%clk 0:01:12.6]} 26... Ncd7
{[%clk 0:01:38.6]} 27. Rf1 {[%clk 0:01:05]} 27... Kg8 {[%clk 0:01:34.2]} 28. Nf3
{[%clk 0:00:50]} 28... Ra2 {[%clk 0:01:16.3]} 29. Qh6 {[%clk 0:00:19.9]} 29...
Qf8 {[%clk 0:01:12.3]} 30. Qf4 {[%clk 0:00:18.9]} 30... Rxb2 {[%clk 0:01:08.5]}
31. Nd4 {[%clk 0:00:19.5]} 31... Qe7 {[%clk 0:00:47.6]} 32. Qc1 {[%clk
0:00:19.5]} 32... Ra2 {[%clk 0:00:45.5]} 33. Qb1 {[%clk 0:00:19.4]} 33... Ra8
{[%clk 0:00:35]} 34. Qxb5 {[%clk 0:00:19.5]} 34... Nc5 {[%clk 0:00:31.1]} 35.
Nc6 {[%clk 0:00:15.7]} 35... Bxc6 {[%clk 0:00:24.2]} 36. dxc6 {[%clk 0:00:16.3]}
36... h5 {[%clk 0:00:17]} 37. e5 {[%clk 0:00:14.2]} 37... dxe5 {[%clk
0:00:15.3]} 38. c7 {[%clk 0:00:11]} 38... Qxc7 {[%clk 0:00:13.8]} 39. Rxf6
{[%clk 0:00:11.1]} 39... Nd3 {[%clk 0:00:11.8]} 40. Bxd3 {[%clk 0:00:10.6]}
40... cxd3 {[%clk 0:00:10]} 41. Qxd3 {[%clk 0:00:11.5]} 41... Qc5+ {[%clk
0:00:07.8]} 42. Kh2 {[%clk 0:00:11.3]} 42... Qe7 {[%clk 0:00:06.2]} 43. Ne4
{[%clk 0:00:11.4]} 43... Kg7 {[%clk 0:00:06]} 44. Qd6 {[%clk 0:00:11.3]} 44...
Qxd6 {[%clk 0:00:05.6]} 45. Rxd6 {[%clk 0:00:12.2]} 45... Rc8 {[%clk 0:00:05.5]}
46. Rd7 {[%clk 0:00:10.7]} 46... Rc4 {[%clk 0:00:02.9]} 47. Rxf7+ {[%clk
0:00:09.6]} 47... Kxf7 {[%clk 0:00:01.7]} 48. Nd6+ {[%clk 0:00:09.9]} 48... Ke6
{[%clk 0:00:02.3]} 49. Nxc4 {[%clk 0:00:10.8]} 49... Kd5 {[%clk 0:00:02.5]} 50.
Nd2 {[%clk 0:00:11.2]} 50... e4 {[%clk 0:00:02]} 51. Nf1 {[%clk 0:00:09.2]}
51... e3 {[%clk 0:00:02.9]} 52. Nxe3+ {[%clk 0:00:09.3]} 52... Ke4 {[%clk
0:00:03.8]} 53. Nc2 {[%clk 0:00:08.9]} 53... Kd3 {[%clk 0:00:03.4]} 54. Ne1+
{[%clk 0:00:09.5]} 54... Kxc3 {[%clk 0:00:03.5]} 55. Nf3 {[%clk 0:00:10.4]}
55... Kd3 {[%clk 0:00:03.1]} 56. Ng5 {[%clk 0:00:10.9]} 56... Ke3 {[%clk
0:00:01.8]} 57. Kg3 {[%clk 0:00:11.8]} 1-0

[Event "*** Titled Tuesday Blitz"]
[Site "Chess.com"]
[Date "2020.05.26"]
[Round "8"]
[White "A-Adly"]
[Black "ameetghasi100"]
[Result "1-0"]
[WhiteElo "2835"]
[BlackElo "2708"]
[TimeControl "180+1"]
[EndTime "11:41:43 PDT"]
[Termination "A-Adly won on time"]

1. Nf3 {[%clk 0:03:00.9]} 1... g6 {[%clk 0:02:59.8]} 2. h4 {[%clk 0:02:59.8]}
2... h6 {[%clk 0:02:59.3]} 3. e4 {[%clk 0:02:59.1]} 3... Bg7 {[%clk 0:02:58.9]}
4. Bc4 {[%clk 0:02:58.6]} 4... e6 {[%clk 0:02:57.7]} 5. Nc3 {[%clk 0:02:56.9]}
5... Nf6 {[%clk 0:02:53]} 6. e5 {[%clk 0:02:54.8]} 6... Ng4 {[%clk 0:02:52.5]}
7. d4 {[%clk 0:02:54.5]} 7... d6 {[%clk 0:02:51.1]} 8. Qe2 {[%clk 0:02:53.7]}
8... Nc6 {[%clk 0:02:44.6]} 9. Bf4 {[%clk 0:02:38]} 9... a6 {[%clk 0:02:29.6]}
10. O-O-O {[%clk 0:02:26.2]} 10... d5 {[%clk 0:02:24.4]} 11. Bb3 {[%clk
0:02:15.1]} 11... h5 {[%clk 0:02:23.8]} 12. Ng5 {[%clk 0:02:09.2]} 12... Nh6
{[%clk 0:02:11.7]} 13. f3 {[%clk 0:02:08.1]} 13... b5 {[%clk 0:01:55.9]} 14. g4
{[%clk 0:02:05.8]} 14... Na5 {[%clk 0:01:38.7]} 15. Rhg1 {[%clk 0:01:55.7]}
15... Bf8 {[%clk 0:01:35.6]} 16. gxh5 {[%clk 0:01:48.4]} 16... gxh5 {[%clk
0:01:34.6]} 17. Nce4 {[%clk 0:01:32.1]} 17... Be7 {[%clk 0:00:38.4]} 18. Nf6+
{[%clk 0:01:23.2]} 18... Bxf6 {[%clk 0:00:37.6]} 19. exf6 {[%clk 0:01:24.1]}
19... Qd7 {[%clk 0:00:29.5]} 20. Ne4 {[%clk 0:00:59.5]} 20... Nf5 {[%clk
0:00:24.8]} 21. Nc5 {[%clk 0:00:56.5]} 21... Qc6 {[%clk 0:00:22.8]} 22. Qg2
{[%clk 0:00:56]} 22... Rf8 {[%clk 0:00:19.1]} 23. Be5 {[%clk 0:00:45.3]} 23...
Nb7 {[%clk 0:00:17.5]} 24. Qg5 {[%clk 0:00:35.3]} 24... Nxc5 {[%clk 0:00:16.8]}
25. dxc5 {[%clk 0:00:36.2]} 25... Qxc5 {[%clk 0:00:15.5]} 26. Rge1 {[%clk
0:00:32.6]} 26... Kd8 {[%clk 0:00:12.7]} 27. Kb1 {[%clk 0:00:25.5]} 27... Bd7
{[%clk 0:00:12.8]} 28. c3 {[%clk 0:00:23]} 28... Kc8 {[%clk 0:00:12.8]} 29. Bd4
{[%clk 0:00:20.6]} 29... Qd6 {[%clk 0:00:12.8]} 30. Be5 {[%clk 0:00:20.6]} 30...
Qc6 {[%clk 0:00:12.7]} 31. Qxh5 {[%clk 0:00:20.8]} 31... Kb7 {[%clk 0:00:12.9]}
32. Qg5 {[%clk 0:00:21.1]} 32... a5 {[%clk 0:00:12.9]} 33. Qf4 {[%clk 0:00:21]}
33... Rh8 {[%clk 0:00:11.9]} 34. Rh1 {[%clk 0:00:20.9]} 34... Rh5 {[%clk
0:00:10.6]} 35. Rh2 {[%clk 0:00:19.6]} 35... Rah8 {[%clk 0:00:10.9]} 36. Rdh1
{[%clk 0:00:19.7]} 36... Qc5 {[%clk 0:00:10.8]} 37. Bc2 {[%clk 0:00:19.4]} 37...
b4 {[%clk 0:00:09.9]} 38. cxb4 {[%clk 0:00:18.9]} 38... axb4 {[%clk 0:00:10.8]}
39. Bd3 {[%clk 0:00:19.1]} 39... Qb6 {[%clk 0:00:10.3]} 40. Rc2 {[%clk
0:00:18.4]} 40... c5 {[%clk 0:00:10.5]} 41. Bxf5 {[%clk 0:00:18.6]} 41... Rxf5
{[%clk 0:00:10.6]} 42. Qg3 {[%clk 0:00:19.1]} 42... Rf8 {[%clk 0:00:09.3]} 43.
f4 {[%clk 0:00:19.4]} 43... Rh5 {[%clk 0:00:07.3]} 44. Qg7 {[%clk 0:00:19.4]}
44... Rhh8 {[%clk 0:00:07.8]} 45. h5 {[%clk 0:00:19.8]} 45... c4 {[%clk
0:00:08.1]} 46. h6 {[%clk 0:00:19.8]} 46... Ba4 {[%clk 0:00:08.3]} 47. Rcc1
{[%clk 0:00:18.5]} 47... c3 {[%clk 0:00:08.2]} 48. h7 {[%clk 0:00:17.8]} 48...
d4 {[%clk 0:00:07.9]} 49. Qg2+ {[%clk 0:00:17]} 49... Bc6 {[%clk 0:00:07.2]} 50.
Qe2 {[%clk 0:00:16.3]} 50... Bd5 {[%clk 0:00:07.6]} 51. b3 {[%clk 0:00:16.1]}
51... Rd8 {[%clk 0:00:07.2]} 52. Rhd1 {[%clk 0:00:16.4]} 52... Bc6 {[%clk
0:00:07.2]} 53. Qc4 {[%clk 0:00:16.5]} 53... Be4+ {[%clk 0:00:05.5]} 54. Ka1
{[%clk 0:00:16.6]} 54... Ra8 {[%clk 0:00:04.8]} 55. a4 {[%clk 0:00:16.8]} 55...
bxa3 {[%clk 0:00:04.5]} 56. Rxd4 {[%clk 0:00:16.6]} 56... Qb5 {[%clk 0:00:04.7]}
57. Qxb5+ {[%clk 0:00:16.4]} 1-0

[Event "*** Titled Tuesday Blitz"]
[Site "Chess.com"]
[Date "2020.05.26"]
[Round "8"]
[White "pfalcon1949"]
[Black "pavelalexandru07"]
[Result "1-0"]
[WhiteElo "2058"]
[BlackElo "2135"]
[TimeControl "180+1"]
[EndTime "11:41:43 PDT"]
[Termination "pfalcon1949 won on time"]

1. d4 {[%clk 0:03:00.9]} 1... Nf6 {[%clk 0:02:59.4]} 2. c4 {[%clk 0:03:01]} 2...
c5 {[%clk 0:02:59.6]} 3. d5 {[%clk 0:03:00.3]} 3... e6 {[%clk 0:03:00.1]} 4. Nc3
{[%clk 0:02:59.5]} 4... exd5 {[%clk 0:03:00.6]} 5. cxd5 {[%clk 0:03:00.4]} 5...
d6 {[%clk 0:03:00.9]} 6. Nf3 {[%clk 0:03:00.6]} 6... g6 {[%clk 0:03:00.7]} 7.
Bf4 {[%clk 0:03:00.7]} 7... Bg7 {[%clk 0:02:58.7]} 8. Qa4+ {[%clk 0:02:59.7]}
8... Bd7 {[%clk 0:02:58.5]} 9. Qb3 {[%clk 0:02:58.4]} 9... b5 {[%clk 0:02:57.8]}
10. Bxd6 {[%clk 0:02:57.1]} 10... Qb6 {[%clk 0:02:57.2]} 11. Be5 {[%clk
0:02:49.1]} 11... c4 {[%clk 0:02:55.8]} 12. Qb4 {[%clk 0:02:29.9]} 12... a5
{[%clk 0:02:46.2]} 13. Qd6 {[%clk 0:02:29.3]} 13... Qxd6 {[%clk 0:02:38.4]} 14.
Bxd6 {[%clk 0:02:29.4]} 14... b4 {[%clk 0:02:38.5]} 15. Nd1 {[%clk 0:02:12.4]}
15... Nxd5 {[%clk 0:02:25.1]} 16. e4 {[%clk 0:02:12.2]} 16... Nb6 {[%clk
0:02:10.6]} 17. Bc5 {[%clk 0:02:11.8]} 17... Na4 {[%clk 0:02:09.7]} 18. Bd4
{[%clk 0:02:06.2]} 18... Bxd4 {[%clk 0:02:08.5]} 19. Nxd4 {[%clk 0:02:06.6]}
19... Nb6 {[%clk 0:01:43.6]} 20. Ne3 {[%clk 0:02:01.8]} 20... Nc6 {[%clk
0:01:37.3]} 21. Nb5 {[%clk 0:01:55.1]} 21... O-O {[%clk 0:01:28.4]} 22. Nxc4
{[%clk 0:01:54.6]} 22... Nxc4 {[%clk 0:01:27.7]} 23. Bxc4 {[%clk 0:01:55.5]}
23... Ne5 {[%clk 0:01:25.1]} 24. Be2 {[%clk 0:01:54.4]} 24... Bc6 {[%clk
0:01:11.4]} 25. f3 {[%clk 0:01:48.5]} 25... Rfd8 {[%clk 0:01:01.6]} 26. Rd1
{[%clk 0:01:29.8]} 26... Rxd1+ {[%clk 0:00:29.9]} 27. Kxd1 {[%clk 0:01:27.1]}
27... Rd8+ {[%clk 0:00:30.2]} 28. Kc2 {[%clk 0:01:22.7]} 28... Rc8 {[%clk
0:00:24.3]} 29. Kd2 {[%clk 0:01:15.4]} 29... Rd8+ {[%clk 0:00:23.2]} 30. Ke3
{[%clk 0:01:13.2]} 30... f5 {[%clk 0:00:16.2]} 31. Rc1 {[%clk 0:01:02.8]} 31...
fxe4 {[%clk 0:00:12.6]} 32. fxe4 {[%clk 0:01:01.7]} 32... Be8 {[%clk 0:00:11.3]}
33. Rc5 {[%clk 0:00:58.3]} 33... Nc6 {[%clk 0:00:08]} 34. Bc4+ {[%clk
0:00:57.2]} 34... Kh8 {[%clk 0:00:07.2]} 35. Nc7 {[%clk 0:00:50.9]} 35... Nd4
{[%clk 0:00:07]} 36. Nxe8 {[%clk 0:00:46.8]} 36... Nc2+ {[%clk 0:00:07.1]} 37.
Ke2 {[%clk 0:00:43.6]} 37... Nd4+ {[%clk 0:00:07]} 38. Ke3 {[%clk 0:00:41.5]}
38... Nc2+ {[%clk 0:00:06.8]} 39. Kf4 {[%clk 0:00:34.7]} 39... Rxe8 {[%clk
0:00:06.9]} 40. Bd5 {[%clk 0:00:31.1]} 40... Rf8+ {[%clk 0:00:07.1]} 41. Ke5
{[%clk 0:00:29.6]} 41... Ne3 {[%clk 0:00:07.4]} 42. Rc7 {[%clk 0:00:28.2]} 42...
Nxg2 {[%clk 0:00:07.2]} 43. Bf7 {[%clk 0:00:27.8]} 43... Ne3 {[%clk 0:00:06.6]}
44. Kf6 {[%clk 0:00:26.3]} 44... Ng4+ {[%clk 0:00:06.5]} 45. Ke7 {[%clk
0:00:26]} 45... Rb8 {[%clk 0:00:06.5]} 46. Bd5 {[%clk 0:00:17.5]} 46... Nxh2
{[%clk 0:00:06.4]} 47. Kf6 {[%clk 0:00:15.6]} 47... Ng4+ {[%clk 0:00:06.4]} 48.
Kg5 {[%clk 0:00:15.3]} 48... Ne3 {[%clk 0:00:06.4]} 49. Bb3 {[%clk 0:00:10.6]}
49... Rb5+ {[%clk 0:00:03.1]} 50. Kf6 {[%clk 0:00:07.7]} 50... Rb8 {[%clk
0:00:03.4]} 51. Kg5 {[%clk 0:00:07]} 51... Rb5+ {[%clk 0:00:01.3]} 52. Kf6
{[%clk 0:00:07.3]} 52... Rb8 {[%clk 0:00:01.7]} 53. e5 {[%clk 0:00:07.8]} 1-0

[Event "*** Titled Tuesday Blitz"]
[Site "Chess.com"]
[Date "2020.05.26"]
[Round "8"]
[White "GMStefanova"]
[Black "Alexander_Moskalenko"]
[Result "0-1"]
[WhiteElo "2640"]
[BlackElo "2797"]
[TimeControl "180+1"]
[EndTime "11:41:44 PDT"]
[Termination "Alexander_Moskalenko won on time"]

1. Nf3 {[%clk 0:03:00.9]} 1... c6 {[%clk 0:02:59]} 2. g3 {[%clk 0:03:00.4]} 2...
d5 {[%clk 0:02:59.9]} 3. Bg2 {[%clk 0:03:00.3]} 3... Bg4 {[%clk 0:02:59.8]} 4.
O-O {[%clk 0:02:59.6]} 4... Nd7 {[%clk 0:03:00.4]} 5. h3 {[%clk 0:02:58.9]} 5...
Bh5 {[%clk 0:03:00.4]} 6. d3 {[%clk 0:02:59]} 6... e6 {[%clk 0:03:00.4]} 7. Qe1
{[%clk 0:02:58.2]} 7... Bd6 {[%clk 0:03:00.3]} 8. e4 {[%clk 0:02:57.9]} 8... Ne7
{[%clk 0:03:00.7]} 9. Nc3 {[%clk 0:02:48.4]} 9... O-O {[%clk 0:03:00.7]} 10. Nh2
{[%clk 0:02:48.5]} 10... Qc7 {[%clk 0:02:43.4]} 11. Kh1 {[%clk 0:02:44.8]} 11...
f5 {[%clk 0:02:39.1]} 12. f4 {[%clk 0:02:31.2]} 12... Rae8 {[%clk 0:01:42.6]}
13. e5 {[%clk 0:02:28.2]} 13... Bb4 {[%clk 0:01:42.7]} 14. a3 {[%clk 0:02:26.3]}
14... Ba5 {[%clk 0:01:42.8]} 15. b4 {[%clk 0:02:23.4]} 15... Bb6 {[%clk
0:01:41.8]} 16. g4 {[%clk 0:02:15.7]} 16... Bg6 {[%clk 0:01:41.1]} 17. Na4
{[%clk 0:02:11.7]} 17... c5 {[%clk 0:01:40.3]} 18. Nxb6 {[%clk 0:02:09.6]} 18...
axb6 {[%clk 0:01:41.2]} 19. b5 {[%clk 0:02:05.2]} 19... c4 {[%clk 0:01:27.2]}
20. g5 {[%clk 0:01:57.9]} 20... cxd3 {[%clk 0:01:09.3]} 21. cxd3 {[%clk
0:01:57.5]} 21... Bh5 {[%clk 0:01:09.3]} 22. Be3 {[%clk 0:01:54.1]} 22... Qc2
{[%clk 0:01:07.1]} 23. Bf3 {[%clk 0:01:14.8]} 23... Bxf3+ {[%clk 0:01:03.8]} 24.
Rxf3 {[%clk 0:01:13.9]} 24... Qxd3 {[%clk 0:00:59.7]} 25. Bxb6 {[%clk
0:01:05.3]} 25... Qxb5 {[%clk 0:00:59.5]} 26. Rb1 {[%clk 0:01:04.5]} 26... Qc4
{[%clk 0:00:59.3]} 27. Bf2 {[%clk 0:00:58.9]} 27... b5 {[%clk 0:00:33.6]} 28.
Rb4 {[%clk 0:00:55.8]} 28... Qc6 {[%clk 0:00:31.4]} 29. Rc3 {[%clk 0:00:51.9]}
29... Qa8 {[%clk 0:00:31.2]} 30. Nf3 {[%clk 0:00:49]} 30... d4 {[%clk 0:00:24]}
31. Rxd4 {[%clk 0:00:45.2]} 31... Nd5 {[%clk 0:00:24.3]} 32. Rb3 {[%clk
0:00:44]} 32... Nc5 {[%clk 0:00:19.5]} 33. Rxb5 {[%clk 0:00:34.8]} 33... Ne4
{[%clk 0:00:19.6]} 34. Kh2 {[%clk 0:00:18.2]} 34... Nxf4 {[%clk 0:00:19.2]} 35.
Nh4 {[%clk 0:00:11.4]} 35... Qxa3 {[%clk 0:00:16.8]} 36. Be3 {[%clk 0:00:10.1]}
36... Qa2+ {[%clk 0:00:11]} 37. Kh1 {[%clk 0:00:09.4]} 37... Nxh3 {[%clk
0:00:09.7]} 38. Rdb4 {[%clk 0:00:07.7]} 38... Nhf2+ {[%clk 0:00:08.6]} 39. Kg1
{[%clk 0:00:07.2]} 39... Nd3 {[%clk 0:00:08.7]} 40. Qb1 {[%clk 0:00:07.1]} 40...
Nxb4 {[%clk 0:00:08.4]} 41. Rxb4 {[%clk 0:00:06.2]} 41... Qxb1+ {[%clk
0:00:08.4]} 42. Rxb1 {[%clk 0:00:06.2]} 42... Rb8 {[%clk 0:00:09.3]} 43. Rf1
{[%clk 0:00:04.5]} 43... g6 {[%clk 0:00:08.2]} 44. Ng2 {[%clk 0:00:03.8]} 44...
Rb3 {[%clk 0:00:08.8]} 45. Rd1 {[%clk 0:00:03.1]} 45... Rfb8 {[%clk 0:00:08.5]}
46. Bf4 {[%clk 0:00:03.1]} 46... Rb1 {[%clk 0:00:08.3]} 47. Rxb1 {[%clk
0:00:03]} 47... Rxb1+ {[%clk 0:00:09.2]} 48. Kh2 {[%clk 0:00:03.1]} 48... Kf7
{[%clk 0:00:09.9]} 49. Be3 {[%clk 0:00:03.3]} 49... Rb2 {[%clk 0:00:10.3]} 50.
Kh3 {[%clk 0:00:02.7]} 50... Nf2+ {[%clk 0:00:10.1]} 51. Kg3 {[%clk 0:00:02.4]}
51... Nd3 {[%clk 0:00:10.7]} 52. Nf4 {[%clk 0:00:01.8]} 52... Nxf4 {[%clk
0:00:10.3]} 53. Kxf4 {[%clk 0:00:01.8]} 53... Rb3 {[%clk 0:00:11.2]} 54. Kf3
{[%clk 0:00:01.5]} 54... Ke8 {[%clk 0:00:12.1]} 55. Kf4 {[%clk 0:00:01.6]} 55...
Kd7 {[%clk 0:00:13]} 0-1

[Event "*** Titled Tuesday Blitz"]
[Site "Chess.com"]
[Date "2020.05.26"]
[Round "8"]
[White "oykuince"]
[Black "almaguerjm"]
[Result "0-1"]
[WhiteElo "2044"]
[BlackElo "2346"]
[TimeControl "180+1"]
[EndTime "11:41:45 PDT"]
[Termination "almaguerjm won by resignation"]

1. e4 {[%clk 0:03:00.9]} 1... e5 {[%clk 0:02:58.7]} 2. Nc3 {[%clk 0:03:00.4]}
2... Nc6 {[%clk 0:02:58.3]} 3. g3 {[%clk 0:03:00.5]} 3... Bc5 {[%clk 0:02:58.2]}
4. Bg2 {[%clk 0:03:00.7]} 4... d6 {[%clk 0:02:58.6]} 5. Nge2 {[%clk 0:03:00.7]}
5... Nge7 {[%clk 0:02:58.4]} 6. O-O {[%clk 0:03:00.8]} 6... O-O {[%clk
0:02:58.5]} 7. Na4 {[%clk 0:02:47.4]} 7... a6 {[%clk 0:02:56.6]} 8. Nxc5 {[%clk
0:02:46.9]} 8... dxc5 {[%clk 0:02:56.6]} 9. d3 {[%clk 0:02:45.5]} 9... Bg4
{[%clk 0:02:55]} 10. h3 {[%clk 0:02:45]} 10... Be6 {[%clk 0:02:52.3]} 11. f4
{[%clk 0:02:44.1]} 11... exf4 {[%clk 0:02:49]} 12. Nxf4 {[%clk 0:02:43.7]} 12...
Bd7 {[%clk 0:02:36.2]} 13. Be3 {[%clk 0:02:42.2]} 13... b6 {[%clk 0:02:34.6]}
14. Qd2 {[%clk 0:02:21]} 14... Ne5 {[%clk 0:02:32.9]} 15. c3 {[%clk 0:02:09.7]}
15... Bb5 {[%clk 0:02:29.1]} 16. Rad1 {[%clk 0:02:07.4]} 16... Qd7 {[%clk
0:02:25.9]} 17. b3 {[%clk 0:02:05.8]} 17... Rad8 {[%clk 0:02:24.4]} 18. c4
{[%clk 0:01:59.8]} 18... Bc6 {[%clk 0:02:24.3]} 19. Nd5 {[%clk 0:01:59.5]} 19...
N7g6 {[%clk 0:02:09.7]} 20. Qc3 {[%clk 0:01:55]} 20... Bxd5 {[%clk 0:01:51.6]}
21. exd5 {[%clk 0:01:54.2]} 21... f6 {[%clk 0:01:37.8]} 22. d4 {[%clk
0:01:40.1]} 22... cxd4 {[%clk 0:01:35.4]} 23. Bxd4 {[%clk 0:01:40.1]} 23... Rfe8
{[%clk 0:01:26.8]} 24. Kh2 {[%clk 0:01:25.2]} 24... Nf7 {[%clk 0:01:18.1]} 25.
Rde1 {[%clk 0:01:16.4]} 25... Rxe1 {[%clk 0:01:16.4]} 26. Rxe1 {[%clk
0:01:16.4]} 26... Re8 {[%clk 0:01:16.7]} 27. Rxe8+ {[%clk 0:01:11.4]} 27... Qxe8
{[%clk 0:01:17.6]} 28. Qd3 {[%clk 0:01:11.8]} 28... Nge5 {[%clk 0:01:12.6]} 29.
Qe4 {[%clk 0:01:07.6]} 29... Ng5 {[%clk 0:01:11.5]} 30. Qf5 {[%clk 0:01:03.8]}
30... Ng6 {[%clk 0:00:53.3]} 31. h4 {[%clk 0:00:51.5]} 31... Nf7 {[%clk
0:00:52.7]} 32. Qe6 {[%clk 0:00:32.7]} 32... Qxe6 {[%clk 0:00:45.4]} 33. dxe6
{[%clk 0:00:32.5]} 33... Nd6 {[%clk 0:00:44.5]} 34. c5 {[%clk 0:00:24.4]} 34...
bxc5 {[%clk 0:00:14.7]} 35. Bxc5 {[%clk 0:00:25.3]} 35... Ne5 {[%clk 0:00:15]}
36. Bd5 {[%clk 0:00:20.9]} 36... Kf8 {[%clk 0:00:14.8]} 37. Bb7 {[%clk
0:00:17.9]} 37... a5 {[%clk 0:00:14.4]} 38. Bc8 {[%clk 0:00:16.4]} 38... Ke7
{[%clk 0:00:14.4]} 39. Bxd6+ {[%clk 0:00:15.9]} 39... cxd6 {[%clk 0:00:13.8]}
40. Kh3 {[%clk 0:00:15.3]} 40... Nc6 {[%clk 0:00:13.7]} 41. Bb7 {[%clk 0:00:15]}
41... Nd4 {[%clk 0:00:13.8]} 42. Bd5 {[%clk 0:00:15]} 42... Nxe6 {[%clk
0:00:14.3]} 43. Be4 {[%clk 0:00:15]} 43... g6 {[%clk 0:00:13.8]} 44. g4 {[%clk
0:00:14.4]} 44... Nc5 {[%clk 0:00:14.1]} 45. Bc2 {[%clk 0:00:13.8]} 45... Ke6
{[%clk 0:00:14.4]} 46. Kg3 {[%clk 0:00:14.1]} 46... Ke5 {[%clk 0:00:14.9]} 47.
h5 {[%clk 0:00:13.7]} 47... f5 {[%clk 0:00:13.7]} 48. hxg6 {[%clk 0:00:13.4]}
48... hxg6 {[%clk 0:00:14.6]} 49. gxf5 {[%clk 0:00:13.7]} 49... gxf5 {[%clk
0:00:15.5]} 50. Kf3 {[%clk 0:00:14.3]} 50... Ne6 {[%clk 0:00:15.2]} 51. Ke2
{[%clk 0:00:14.2]} 51... Nd4+ {[%clk 0:00:15.5]} 52. Kd2 {[%clk 0:00:13.1]}
52... Nxc2 {[%clk 0:00:15.9]} 53. Kxc2 {[%clk 0:00:14]} 53... Kd4 {[%clk
0:00:16.1]} 54. Kd2 {[%clk 0:00:14.1]} 54... d5 {[%clk 0:00:15.6]} 55. Ke2
{[%clk 0:00:15]} 55... Kc3 {[%clk 0:00:16.1]} 56. Kf3 {[%clk 0:00:15.9]} 56...
Kb2 {[%clk 0:00:16.1]} 57. Kf4 {[%clk 0:00:16.8]} 57... Kxa2 {[%clk 0:00:16.7]}
58. Kxf5 {[%clk 0:00:17.7]} 58... Kxb3 {[%clk 0:00:17.3]} 59. Ke5 {[%clk
0:00:18.6]} 59... a4 {[%clk 0:00:18.1]} 60. Kxd5 {[%clk 0:00:19.5]} 60... a3
{[%clk 0:00:19]} 61. Kd4 {[%clk 0:00:20.4]} 61... a2 {[%clk 0:00:19.9]} 62. Kc5
{[%clk 0:00:21.3]} 62... a1=Q {[%clk 0:00:19.9]} 63. Kc6 {[%clk 0:00:22.2]}
63... Qd4 {[%clk 0:00:19.7]} 64. Kc7 {[%clk 0:00:21.4]} 64... Qf6 {[%clk
0:00:20]} 65. Kb7 {[%clk 0:00:22.1]} 65... Qd6 {[%clk 0:00:19.4]} 66. Ka7 {[%clk
0:00:20.7]} 0-1